bitfinex-derivatives/quotes_ETHF0:USTF0_20240927
["timestamp","ask_amount","ask_price","bid_price","bid_amount"]
[1727407872614,0.76819,2626.4,2626.3,3.7250926]
[1727407872913,0.76819,2626.4,2626.2,3.1359154]
[1727407873109,0.3789,2626.3,2626.2,3.1359154]
[1727407873414,0.3789,2626.3,2626.2,4.86671312]
[1727407873907,0.3875,2626.4,2626.2,4.86671312]
[1727407874216,0.3875,2626.4,2626.3,0.9972154]
[1727407874404,0.3875,2626.4,2626.3,4.09774003]
[1727407874607,0.3875,2626.4,2626.3,2.3672154]
[1727407876614,0.3875,2626.4,2626.3,4.09764391]
[1727407876917,0.3875,2626.4,2626.3,2.3672154]
[1727407877722,0.3875,2626.4,2626.3,4.09755575]
[1727407878424,0.3875,2626.4,2626.3,3.10034035]
[1727407878628,0.3875,2626.4,2626.3,4.0971319]
[1727407879024,0.3875,2626.4,2626.3,4.09700411]
[1727407879424,0.3875,2626.4,2626.3,4.09700133]
[1727407879626,0.76819,2626.4,2626.3,2.36679155]
[1727407879923,0.76819,2626.4,2626.3,0.99679155]
[1727407880321,0.3807,2626.3,2626.2,0.99679155]
[1727407880526,0.7923,2626.3,2626.2,0.99679155]
[1727407880924,3.2078,2626.5,2626.2,1.37]
[1727407881224,3.6194,2626.5,2626.3,8.55520127]
[1727407881428,3.6194,2626.5,2626.4,3.72473633]
[1727407881429,4.00008,2626.5,2626.4,3.72473633]
[1727407881630,4.00008,2626.5,2626.4,1.73034983]
[1727407881829,4.00008,2626.5,2626.4,3.72473633]
[1727407882031,4.00008,2626.5,2626.4,1.73034983]
[1727407882221,4.00008,2626.5,2626.4,3.72473633]
[1727407882426,0.79228,2626.5,2626.4,1.73034983]
[1727407882626,0.79228,2626.5,2626.4,3.72473633]
[1727407883329,0.79228,2626.5,2626.4,1.73034983]
[1727407884029,0.4116,2626.5,2626.4,1.73034983]
[1727407884233,0.38065,2626.7,2626.4,3.72473633]
[1727407884530,0.38066,2626.6,2626.5,5.37967725]
[1727407884735,0.38066,2626.6,2626.5,3.88504983]
[1727407884926,0.38066,2626.6,2626.5,5.37955981]
[1727407885122,0.381,2626.7,2626.5,5.37953277]
[1727407885327,0.381,2626.7,2626.6,1.73034983]
[1727407886735,0.381,2626.7,2626.6,3.22423057]
[1727407886932,0.75313,2626.8,2626.6,5.53754983]
[1727407887139,0.75313,2626.8,2626.7,4.59416279]
[1727407888131,0.75313,2626.8,2626.7,1.37]
[1727407889432,0.38063,2626.8,2626.7,1.37]
[1727407889736,0.7673,2627.0,2626.7,1.37]
[1727407889933,0.7673,2627.0,2626.9,1.37]
[1727407890332,1.1479,2627.0,2626.9,1.37]
[1727407891340,0.7673,2627.0,2626.9,1.37]
[1727407891529,1.1479,2627.0,2626.9,1.37]
[1727407891933,0.7673,2627.0,2626.9,1.37]
[1727407892941,1.1479,2627.0,2626.9,1.37]
[1727407893142,4.3557,2627.0,2626.9,1.37]
[1727407894744,3.9751,2627.0,2626.9,1.37]
[1727407895340,4.3557,2627.0,2626.9,1.37]
[1727407895642,0.38061,2626.9,2626.8,0.99573899]
[1727407896039,0.38061,2626.9,2626.7,2.36573899]
[1727407896549,3.9751,2627.0,2626.7,2.36573899]
[1727407896550,0.38063,2626.8,2626.7,2.36573899]
[1727407896848,0.38063,2626.8,2626.7,4.0922683]
[1727407898442,3.9751,2627.0,2626.7,4.0922683]
[1727407898640,0.38061,2626.9,2626.8,1.37]
[1727407901742,3.9751,2627.0,2626.8,1.37]
[1727407901939,0.356,2627.4,2626.9,3.8064]
[1727407902143,0.804,2627.3,2627.1,0.99573899]
[1727407902343,0.804,2627.3,2627.2,0.99573899]
[1727407902651,0.804,2627.3,2627.2,8.8]
[1727407902951,0.804,2627.3,2627.2,0.99573899]
[1727407903250,0.804,2627.3,2626.9,1.1572]
[1727407903453,0.804,2627.3,2627.2,1.37]
[1727407906345,1.18456,2627.3,2627.1,1.37]
[1727407910446,0.38059,2627.1,2626.9,0.99573899]
[1727407910654,1.1779,2627.0,2626.9,0.99573899]
[1727407910845,0.60668497,2627.0,2626.9,0.99573899]
[1727407911647,0.38061,2626.9,2626.8,0.99573899]
[1727407911848,0.77122,2626.9,2626.7,1.37173899]
[1727407912153,0.77122,2626.9,2626.8,1.37]
[1727407912154,0.3906,2626.9,2626.8,1.37]
[1727407912547,0.3906,2626.9,2626.8,1.7677]
[1727407913549,0.3906,2626.9,2626.8,2.76343899]
[1727407913746,0.3906,2626.9,2626.8,1.7677]
[1727407913950,0.77121,2626.9,2626.8,1.7677]
[1727407914754,0.77121,2626.9,2626.8,2.76343899]
[1727407914950,0.3906,2626.9,2626.8,2.76343899]
[1727407915156,0.3983,2627.1,2626.8,6.57063899]
[1727407915459,3.2078,2627.2,2626.9,2.36573899]
[1727407915661,3.2078,2627.2,2627.1,1.37]
[1727407916356,3.58837,2627.2,2627.1,1.37]
[1727407916563,3.2078,2627.2,2627.1,1.37]
[1727407925160,3.58837,2627.2,2627.1,1.37]
[1727407925469,3.58837,2627.2,2627.1,2.36573899]
[1727407925669,3.2078,2627.2,2627.1,2.36573899]
[1727407925970,3.58837,2627.2,2627.1,2.36573899]
[1727407926359,3.2078,2627.2,2627.1,2.36573899]
[1727407927071,3.58837,2627.2,2627.1,2.36573899]
[1727407930682,3.58837,2627.2,2627.1,4.09222629]
[1727407930870,3.58837,2627.2,2627.1,4.09222177]
[1727407931376,3.58837,2627.2,2627.1,3.09774386]
[1727407932077,3.58837,2627.2,2627.1,4.59155682]
[1727407933074,3.58837,2627.2,2627.1,3.09774386]
[1727407933276,3.58837,2627.2,2627.1,2.36474944]
[1727407935381,3.58837,2627.2,2627.1,4.09335396]
[1727407935382,3.2078,2627.2,2627.1,4.09335396]
[1727407935577,3.58837,2627.2,2627.1,2.36474944]
[1727407936172,3.58837,2627.2,2627.1,4.09342611]
[1727407936974,3.58837,2627.2,2627.1,2.36474944]
[1727407937483,3.97917,2627.2,2627.1,0.99474944]
[1727407940473,3.2078,2627.2,2627.1,1.37]
[1727407940676,4.434,2627.7,2627.1,11.1764]
[1727407940880,1.1834,2627.8,2627.6,1.37]
[1727407941075,1.56388,2627.8,2627.7,1.37]
[1727407941376,1.56388,2627.8,2627.6,1.37]
[1727407941981,1.1834,2627.8,2627.6,1.37]
[1727407942680,1.56389,2627.8,2627.6,1.37]
[1727407943480,1.1834,2627.8,2627.6,1.37]
[1727407944283,1.56389,2627.8,2627.6,1.37]
[1727407944785,1.1834,2627.8,2627.6,1.37]
[1727407945182,1.56389,2627.8,2627.4,0.4065]
[1727407945381,1.56389,2627.8,2627.6,1.37]
[1727407945978,0.38049,2627.8,2627.6,1.37]
[1727407949692,0.38051,2627.7,2627.5,2.36474944]
[1727407950184,0.3722,2627.6,2627.5,2.36474944]
[1727407950391,0.3722,2627.6,2627.5,1.37]
[1727407951294,0.3722,2627.6,2627.5,0.99474944]
[1727407951591,0.3722,2627.6,2627.5,1.37]
[1727407951788,0.75271,2627.6,2627.5,1.37]
[1727407952187,0.3722,2627.6,2627.5,1.37]
[1727407953693,3.2078,2627.7,2627.5,1.37]
[1727407953877,3.5883,2627.7,2627.6,0.3786]
[1727407954084,0.3805,2627.7,2627.6,0.3786]
[1727407954679,0.76509,2627.8,2627.6,0.3786]
[1727407955088,0.76509,2627.8,2627.7,0.3912]
[1727407955992,0.3805,2627.7,2627.6,0.3786]
[1727407957492,0.76509,2627.8,2627.6,0.3786]
[1727407958091,0.3846,2627.8,2627.7,1.37]
[1727407958493,0.76508,2627.8,2627.7,1.37]
[1727407959686,0.3846,2627.8,2627.7,1.37]
[1727407961596,0.76508,2627.8,2627.7,1.37]
[1727407962784,0.3805,2627.7,2627.5,1.7612]
[1727407962989,3.2078,2627.6,2627.5,1.7612]
[1727407963391,3.2078,2627.6,2627.5,2.75594944]
[1727407963593,0.3846,2627.8,2627.5,1.7612]
[1727407963791,0.3846,2627.8,2627.7,1.37]
[1727407967401,0.77967,2627.9,2627.7,1.37]
[1727407967593,0.77967,2627.9,2627.8,0.3728]
[1727407967793,0.77967,2627.9,2627.8,0.7704]
[1727407968595,0.3992,2627.9,2627.8,0.7704]
[1727407969900,0.77967,2627.9,2627.8,0.7704]
[1727407970502,0.38043,2628.2,2627.8,0.7704]
[1727407970694,0.77363,2628.2,2628.1,1.37]
[1727407971200,3.5884,2628.4,2628.1,1.37]
[1727407971401,3.9688,2628.4,2628.3,1.37]
[1727407971900,0.38044,2628.1,2628.0,0.99474944]
[1727407972100,3.58824,2628.1,2627.9,10.5594]
[1727407972800,0.38046,2628.0,2627.9,10.5594]
[1727407973001,1.17216,2628.0,2627.9,10.5594]
[1727407973503,1.17216,2628.0,2627.9,1.7594]
[1727407973998,0.38043,2628.3,2627.9,1.7594]
[1727407974302,0.76633,2628.3,2628.0,1.37]
[1727407975098,0.3859,2628.3,2628.0,1.37]
[1727407975599,3.2078,2628.1,2628.0,1.37]
[1727407976804,0.3859,2628.3,2628.0,1.37]
[1727407977005,0.3859,2628.3,2628.2,1.37]
[1727407977798,3.9989,2628.4,2628.2,1.37]
[1727407978101,3.9989,2628.4,2628.3,1.37]
[1727407978602,3.2078,2628.4,2628.3,1.37]
[1727407978795,3.2078,2628.4,2628.3,5.1748]
[1727407979307,0.3992,2628.7,2628.3,5.1748]
[1727407979602,3.98735,2628.7,2628.6,1.37]
[1727407979814,3.607,2628.7,2628.6,1.37]
[1727407980306,3.98735,2628.7,2628.6,1.37]
[1727407980494,0.77955,2628.7,2628.6,1.37]
[1727407980694,3.98735,2628.7,2628.6,1.37]
[1727407981003,3.58815,2628.7,2628.6,1.37]
[1727407981205,3.2078,2628.7,2628.6,1.37]
[1727407981398,0.38034,2628.8,2628.6,1.37]
[1727407981601,0.38034,2628.8,2628.7,1.37]
[1727407982106,3.58814,2628.8,2628.7,1.37]
[1727407982295,3.2078,2628.8,2628.7,1.37]
[1727407983505,3.58814,2628.8,2628.7,1.37]
[1727407984811,3.2078,2628.8,2628.7,1.37]
[1727407985803,3.58814,2628.8,2628.7,1.37]
[1727407986001,3.2078,2628.8,2628.7,1.37]
[1727407987900,3.2078,2628.8,2628.7,5.174]
[1727407989110,3.58814,2628.8,2628.7,5.174]
[1727407989307,3.2078,2628.8,2628.7,5.174]
[1727407991706,1.1192,2629.2,2628.7,8.3818]
[1727407991707,0.7398,2629.2,2628.7,8.3818]
[1727407991909,0.3838,2629.2,2629.1,1.37]
[1727407992102,0.0376832,2629.3,2629.1,1.37]
[1727407992304,0.4179532,2629.3,2629.2,13.3898]
[1727407992508,0.4179532,2629.3,2629.2,13.7991]
[1727407992901,0.0376832,2629.3,2629.2,13.7991]
[1727407995208,0.8159,2629.6,2629.2,20.17938]
[1727407995407,0.73618,2629.9,2629.5,1.37]
[1727407995615,0.38018,2629.9,2629.8,1.37]
[1727407996011,0.4063,2630.0,2629.8,5.1724]
[1727407996215,0.4063,2630.0,2629.8,1.37]
[1727407996711,3.5942,2630.1,2629.8,1.37]
[1727407996712,0.3814,2630.2,2629.8,1.37]
[1727407996915,0.3814,2630.2,2630.0,1.37]
[1727407998119,3.5892,2630.2,2630.0,1.37]
[1727407998916,3.2078,2630.2,2630.1,3.8024]
[1727407999214,0.393,2630.5,2630.1,5.0042]
[1727407999415,0.393,2630.5,2630.4,1.37]
[1727408000114,0.77309,2630.5,2630.4,1.37]
[1727408000324,3.2078,2630.6,2630.4,2.97]
[1727408000820,3.58789,2630.6,2630.4,2.97]
[1727408001414,3.58789,2630.6,2630.5,8.8]
[1727408001415,3.2078,2630.6,2630.5,8.8]
[1727408002617,7.2858,2630.9,2630.5,8.8]
[1727408002821,0.38007,2630.7,2630.5,11.77]
[1727408003222,0.3867,2630.8,2630.5,11.77]
[1727408003524,0.3867,2630.8,2630.7,2.97]
[1727408003927,0.76675,2630.8,2630.7,2.97]
[1727408004714,0.76675,2630.8,2630.3,0.3768]
[1727408004919,0.76675,2630.8,2630.0,3.059]
[1727408004920,3.2078,2630.5,2630.0,3.059]
[1727408005122,0.38015,2630.1,2629.7,1.9314]
[1727408005424,0.4108,2630.0,2629.8,16.89828371]
[1727408006420,0.4108,2630.0,2629.9,2.97]
[1727408006620,0.79097,2630.0,2629.9,2.97]
[1727408006820,0.4108,2630.0,2629.9,2.97]
[1727408008127,3.2078,2630.2,2629.9,2.97]
[1727408008329,3.2078,2630.2,2630.1,2.97]
[1727408008630,3.6192,2630.3,2630.1,2.97]
[1727408008931,3.99933,2630.3,2630.1,2.97]
[1727408009729,3.6192,2630.3,2630.1,2.97]
[1727408009945,0.7786,2630.4,2630.1,6.7716]
[1727408010144,0.7786,2630.4,2630.3,2.97]
[1727408010846,0.4049,2630.4,2630.3,2.97]
[1727408011943,0.3776,2630.8,2630.3,7.15172]
[1727408012146,3.9352,2630.9,2630.7,2.97]
[1727408012439,3.5792,2630.9,2630.7,2.97]
[1727408012849,3.95924,2630.9,2630.7,2.97]
[1727408013245,3.5792,2630.9,2630.7,2.97]
[1727408013552,3.95924,2630.9,2630.7,2.97]
[1727408014148,3.5792,2630.9,2630.7,2.97]
[1727408014347,3.95924,2630.9,2630.7,2.97]
[1727408014547,3.5792,2630.9,2630.7,2.97]
[1727408015650,3.95925,2630.9,2630.7,2.97]
[1727408016455,3.2078,2630.9,2630.7,2.97]
[1727408016753,3.2078,2631.1,2630.8,0.4087]
[1727408016952,3.2078,2631.1,2631.0,2.97]
[1727408018353,3.58781,2631.1,2631.0,2.97]
[1727408018557,3.2078,2631.1,2631.0,2.97]
[1727408021145,3.58781,2631.1,2631.0,2.97]
[1727408021551,3.2078,2631.1,2631.0,2.97]
[1727408021751,3.58781,2631.1,2631.0,2.97]
[1727408022458,3.2078,2631.1,2631.0,2.97]
[1727408023863,3.58781,2631.1,2631.0,2.97]
[1727408024251,7.0086,2631.1,2630.5,3.059]
[1727408024458,3.58781,2631.1,2631.0,2.97]
[1727408025948,3.2078,2631.1,2631.0,2.97]
[1727408026149,0.356,2631.6,2631.0,2.97]
[1727408026150,0.37998,2631.3,2631.0,2.97]
[1727408026355,0.3741,2631.2,2631.0,2.97]
[1727408026760,0.3741,2631.2,2631.1,0.4059]
[1727408027564,3.58776,2631.5,2631.1,0.4059]
[1727408027860,3.9638,2631.5,2631.2,3.3662]
[1727408028158,3.9638,2631.5,2631.3,8.8]
[1727408028355,4.34375,2631.5,2631.3,8.8]
[1727408029061,3.9638,2631.5,2631.3,8.8]
[1727408029253,3.9638,2631.5,2631.2,3.3662]
[1727408029763,4.34375,2631.5,2631.2,3.3662]
[1727408030056,3.9638,2631.5,2631.2,3.3662]
[1727408030257,3.2078,2631.5,2631.4,2.97]
[1727408030463,0.356,2631.8,2631.4,2.97]
[1727408030651,0.37991,2631.8,2631.6,2.97]
[1727408031055,0.3799,2631.9,2631.7,8.8]
[1727408031462,0.37991,2631.8,2631.7,9.1855]
[1727408031661,0.3799,2631.9,2631.7,12.1555]
[1727408032060,0.37989,2632.0,2631.7,3.3555]
[1727408032258,3.58769,2632.0,2631.9,2.97]
[1727408032465,3.2078,2632.0,2631.9,2.97]
[1727408033057,3.58768,2632.0,2631.9,2.97]
[1727408033455,3.58768,2632.0,2631.9,11.77]
[1727408036368,3.58768,2632.0,2631.9,2.97]
[1727408036569,0.37993,2631.6,2631.5,3.3696]
[1727408037167,0.77313,2631.6,2631.5,3.3696]
[1727408038766,0.37993,2631.6,2631.5,3.3696]
[1727408040468,3.2078,2631.7,2631.5,3.3696]
[1727408040673,0.3799,2631.9,2631.5,3.3696]
[1727408040870,0.3799,2631.9,2631.8,2.97]
[1727408041471,3.2078,2632.0,2631.8,2.97]
[1727408041673,3.58768,2632.0,2631.8,2.97]
[1727408041872,3.58768,2632.0,2631.9,0.3852]
[1727408042164,13.007,2632.0,2631.0,0.089]
[1727408042363,0.37999,2631.2,2631.1,0.089]
[1727408042569,0.38001,2631.1,2631.0,0.762]
[1727408042760,0.38004,2630.9,2630.8,2.97]
[1727408043264,0.38006,2630.7,2630.6,2.97]
[1727408043458,3.58786,2630.7,2630.6,2.97]
[1727408045466,0.38002,2631.0,2630.6,12.7716]
[1727408045661,0.38002,2631.0,2630.9,2.97]
[1727408051668,0.38005,2630.9,2630.7,2.97]
[1727408051870,0.38004,2630.9,2630.8,8.8]
[1727408052075,0.38003,2631.0,2630.8,8.8]
[1727408052275,0.38003,2631.0,2630.9,0.3997]
[1727408057669,0.77513,2631.0,2630.9,0.3997]
[1727408059379,0.77513,2631.0,2630.9,0.7811]
[1727408060673,3.98293,2631.0,2630.9,0.7811]
[1727408061882,0.38004,2630.9,2630.8,8.8]
[1727408067075,0.76334,2630.9,2630.8,8.8]
[1727408068691,0.38008,2630.6,2630.5,0.7944]
[1727408069685,0.3801,2630.5,2630.3,11.77]
[1727408069897,0.7545,2630.5,2630.3,11.77]
[1727408070685,0.38011,2630.4,2630.2,0.7815]
[1727408070989,0.3744,2630.5,2630.2,0.7815]
[1727408071288,0.75252,2630.4,2630.2,9.5815]
[1727408072480,0.38017,2630.0,2629.9,0.089]
[1727408072681,3.2078,2630.1,2629.7,3.7584]
[1727408072887,3.2078,2629.8,2629.7,3.7584]
[1727408073385,3.2078,2629.8,2629.7,2.97]
[1727408073580,3.6184,2629.8,2629.7,2.97]
[1727408073776,3.6184,2629.8,2629.5,2.97]
[1727408073985,3.9986,2629.8,2629.5,2.97]
[1727408074578,3.6184,2629.8,2629.7,2.97]
[1727408074984,3.2078,2629.8,2629.7,2.97]
[1727408076679,0.3761,2630.1,2629.7,6.7724]
[1727408076884,3.5981,2630.2,2630.0,2.97]
[1727408077292,3.97824,2630.2,2630.0,2.97]
[1727408077593,3.5981,2630.2,2630.0,2.97]
[1727408078091,3.2078,2630.2,2630.0,2.97]
[1727408078678,3.2078,2630.2,2630.1,8.8]
[1727408081093,3.58794,2630.2,2630.1,8.8]
[1727408081497,0.38017,2630.0,2629.8,0.4015]
[1727408081695,0.3714,2629.9,2629.8,0.4015]
[1727408081886,0.3714,2629.9,2629.8,9.2015]
[1727408082089,0.75158,2629.9,2629.8,8.8]
[1727408082284,3.5792,2629.9,2629.5,0.807]
[1727408082793,0.38022,2629.7,2629.6,8.8]
[1727408083286,0.8156,2629.8,2629.6,8.8]
[1727408083495,0.38025,2629.5,2629.2,3.777]
[1727408083688,3.5842,2629.4,2629.2,3.777]
[1727408084086,3.5842,2629.4,2629.1,0.99474944]
[1727408084294,3.96445,2629.4,2629.1,0.382]
[1727408084500,3.5842,2629.4,2629.1,0.382]
[1727408088794,3.96445,2629.4,2629.1,0.382]
[1727408089191,3.5842,2629.4,2629.1,0.382]
[1727408089395,3.5842,2629.4,2629.2,8.8]
[1727408093491,3.2078,2629.4,2629.2,8.8]
[1727408093805,3.2078,2629.4,2629.3,2.97]
[1727408094495,3.2078,2629.4,2629.3,11.77]
[1727408094701,3.2078,2629.4,2629.3,12.15027]
[1727408094893,3.96262,2629.7,2629.3,12.15027]
[1727408095301,3.5824,2629.7,2629.4,0.76345]
[1727408095506,3.5824,2629.7,2629.4,0.3832]
[1727408095696,3.5824,2629.7,2629.5,0.3874]
[1727408096298,3.5824,2629.7,2629.6,0.4091]
[1727408097398,3.96261,2629.7,2629.6,0.4091]
[1727408097996,3.5824,2629.7,2629.6,0.4091]
[1727408099601,3.96261,2629.7,2629.6,0.4091]
[1727408100007,0.38022,2629.6,2629.5,0.3874]
[1727408100308,3.5824,2629.7,2629.3,9.2024]
[1727408100514,3.58805,2629.4,2629.3,9.2024]
[1727408100811,3.2078,2629.4,2629.3,12.1724]
[1727408101003,3.2078,2629.7,2629.3,15.9756]
[1727408101201,3.2078,2630.0,2629.6,3.35022]
[1727408101403,3.2078,2630.0,2629.7,0.7778]
[1727408101604,1.17145,2630.1,2629.8,0.4024]
[1727408101808,3.58797,2630.0,2629.8,0.4024]
[1727408102106,0.38019,2629.9,2629.4,2.97]
[1727408102311,0.38019,2629.9,2629.5,0.7769]
[1727408102506,3.58797,2630.0,2629.5,1.15714]
[1727408102704,3.2078,2630.0,2629.9,2.97]
[1727408102903,3.2078,2630.3,2629.9,2.97]
[1727408103111,3.58793,2630.3,2630.0,0.3876]
[1727408103309,3.58793,2630.3,2630.0,0.7664]
[1727408103508,3.2078,2630.3,2630.0,0.7664]
[1727408103711,3.2078,2630.3,2630.1,2.97]
[1727408104916,3.2078,2630.3,2630.1,6.7716]
[1727408105510,3.2078,2630.3,2630.2,3.8016]
[1727408105911,3.2078,2630.3,2630.2,18.6016]
[1727408106610,3.2078,2630.3,2630.2,12.6016]
[1727408107117,3.2078,2630.3,2630.2,8.8]
[1727408108210,0.4074,2630.6,2630.2,8.8]
[1727408108513,0.78748,2630.6,2630.2,8.8]
[1727408108712,0.4074,2630.6,2630.2,8.8]
[1727408109015,0.78748,2630.6,2630.2,8.8]
[1727408109510,0.4074,2630.6,2630.2,8.8]
[1727408111212,0.78749,2630.6,2630.2,8.8]
[1727408111617,0.78749,2630.6,2630.2,9.79474944]
[1727408112920,0.3801,2630.5,2630.2,9.79474944]
[1727408113319,0.3867,2630.4,2630.2,9.79474944]
[1727408114322,0.7682,2630.4,2630.2,9.79474944]
[1727408115622,1.14831,2630.4,2630.2,0.99474944]
[1727408115819,1.14831,2630.4,2630.1,3.96474944]
[1727408116210,0.38012,2630.3,2630.1,3.96474944]
[1727408116425,0.399,2630.2,2630.1,3.96474944]
[1727408117218,0.7682,2630.4,2630.1,5.7123399]
[1727408117421,0.7682,2630.4,2630.1,3.96474944]
[1727408117626,0.3867,2630.4,2630.1,4.34489944]
[1727408117924,0.3867,2630.4,2630.2,0.99474944]
[1727408120028,0.76219,2630.6,2630.3,2.97]
[1727408120230,0.76219,2630.6,2630.4,0.4002]
[1727408125532,0.3821,2630.6,2630.4,0.78031]
[1727408125732,3.2078,2630.7,2630.5,0.4014]
[1727408125930,3.58786,2630.7,2630.6,2.97]
[1727408126134,3.58786,2630.7,2630.5,0.4014]
[1727408126135,0.38008,2630.6,2630.5,0.4014]
[1727408126331,0.75388,2630.6,2630.5,0.4014]
[1727408126831,0.3738,2630.6,2630.5,0.4014]
[1727408127235,3.2078,2630.7,2630.5,0.78149]
[1727408127535,3.58787,2630.7,2630.5,0.4014]
[1727408127727,3.2078,2630.7,2630.5,0.4014]
[1727408129539,3.58787,2630.7,2630.5,0.4014]
[1727408129739,0.4032,2630.6,2630.5,0.4014]
[1727408130229,0.4032,2630.6,2630.4,0.4002]
[1727408130535,0.7771,2630.5,2630.1,3.3506]
[1727408130739,0.3941,2630.4,2630.1,3.3775]
[1727408130932,0.3941,2630.4,2630.1,0.4075]
[1727408130933,0.38014,2630.2,2630.1,0.4075]
[1727408131131,0.38014,2630.2,2629.9,0.4075]
[1727408131433,0.3889,2630.1,2629.9,9.2075]
[1727408133651,0.3889,2630.1,2629.9,10.1952408]
[1727408134935,0.3889,2630.1,2629.9,1.3952408]
[1727408135139,0.76906,2630.1,2629.9,1.3952408]
[1727408135340,3.2078,2630.3,2630.2,0.38014]
[1727408135639,3.2078,2630.7,2630.2,3.2078]
[1727408135826,0.386,2630.6,2630.2,3.2078]
[1727408136030,4.38099,2630.6,2630.2,3.2078]
[1727408136226,0.3801,2630.5,2630.2,14.6778]
[1727408136446,4.38099,2630.6,2630.2,14.6778]
[1727408136931,4.0009,2630.6,2630.2,14.6778]
[1727408137133,0.38012,2630.4,2630.2,14.6778]
[1727408137337,0.38012,2630.4,2630.2,8.5]
[1727408137338,0.38011,2630.4,2630.2,8.5]
[1727408137532,0.3893,2630.3,2630.2,8.5]
[1727408138642,0.3893,2630.3,2630.2,11.23959559]
[1727408138832,0.3893,2630.3,2630.2,11.23962053]
[1727408139136,0.3893,2630.3,2630.2,11.73403137]
[1727408142042,3.5971,2630.3,2630.2,11.73403137]
[1727408142542,3.5971,2630.3,2630.2,3.23403137]
[1727408143240,3.02655631,2630.3,2630.2,3.23403137]
[1727408143442,3.02655631,2630.3,2630.2,3.72628047]
[1727408143641,0.3801,2630.5,2630.2,7.23336139]
[1727408143841,0.3801,2630.5,2630.4,1.48559162]
[1727408144042,0.3801,2630.5,2630.4,3.23912949]
[1727408144339,3.8016,2630.5,2630.4,3.23912949]
[1727408144542,4.18169,2630.5,2630.4,3.23912949]
[1727408144742,3.8016,2630.5,2630.4,3.23912949]
[1727408145541,3.8016,2630.5,2630.4,1.75353787]
[1727408145744,4.18169,2630.5,2630.4,1.75353787]
[1727408145943,4.18169,2630.5,2630.4,3.24037545]
[1727408146342,4.18169,2630.5,2630.4,1.75353787]
[1727408146544,4.58199,2630.5,2630.4,3.24037545]
[1727408148246,0.4003,2630.5,2630.4,3.24037545]
[1727408148455,0.78039,2630.5,2630.4,3.72901948]
[1727408149045,0.78039,2630.5,2630.4,1.75353787]
[1727408149243,0.4003,2630.5,2630.4,3.72896675]
[1727408149447,4.0009,2630.6,2630.4,3.72896675]
[1727408149745,4.38098,2630.6,2630.5,3.24102004]
[1727408150050,8.18258,2630.6,2630.5,1.75348514]
[1727408151050,8.18258,2630.6,2630.5,3.24099542]
[1727408151243,7.8025,2630.6,2630.5,3.24101789]
[1727408151447,8.18258,2630.6,2630.5,1.75348514]
[1727408152256,8.18258,2630.6,2630.4,0.99168427]
[1727408152448,0.38009,2630.5,2630.4,0.99168427]
[1727408152649,0.38011,2630.4,2630.3,0.4038]
[1727408155653,0.38011,2630.4,2630.3,1.39548427]
[1727408156459,0.38011,2630.4,2630.3,0.4038]
[1727408156658,3.58791,2630.4,2630.3,0.4038]
[1727408159460,3.58791,2630.4,2630.3,2.16095202]
[1727408159662,3.58791,2630.4,2630.3,2.16095443]
[1727408160562,3.58791,2630.4,2630.3,1.75715443]
[1727408161058,15.70979,2630.4,2630.3,3.24502155]
[1727408161259,15.70979,2630.4,2630.3,0.99192955]
[1727408161467,1.33043,2630.3,2630.2,0.99192955]
[1727408161666,5.13203,2630.3,2630.2,0.99192955]
[1727408161858,5.13203,2630.3,2630.2,2.74927347]
[1727408161859,11.13203,2630.3,2630.2,2.74927347]
[1727408162058,1.33054,2630.1,2630.0,0.99224292]
[1727408162258,4.53834,2630.1,2630.0,0.99224292]
[1727408162458,1.33059,2630.0,2629.9,0.99224292]
[1727408162655,6.88999,2630.0,2629.9,0.99224292]
[1727408162854,12.88999,2630.0,2629.9,0.99224292]
[1727408163055,6.88999,2630.0,2629.9,2.75340682]
[1727408163259,4.56957,2630.0,2629.9,0.99224292]
[1727408163666,4.18257,2630.0,2629.9,1.76681093]
[1727408163860,3.58796,2630.1,2629.9,5.02477805]
[1727408164062,3.58796,2630.1,2630.0,1.37067653]
[1727408164664,3.58796,2630.1,2630.0,3.13704248]
[1727408165265,3.58796,2630.1,2630.0,1.37067653]
[1727408165764,3.58796,2630.1,2630.0,3.13680564]
[1727408166065,3.58796,2630.1,2630.0,1.37067653]
[1727408170262,3.58796,2630.1,2629.9,0.4001]
[1727408170263,1.33059,2630.0,2629.9,0.99157653]
[1727408170470,0.38021,2629.7,2629.6,0.99157653]
[1727408170666,0.38022,2629.6,2629.5,0.99157653]
[1727408170866,0.38024,2629.5,2629.4,0.99157653]
[1727408172170,0.38025,2629.4,2629.3,0.99157653]
[1727408172372,0.38025,2629.4,2629.3,2.75644266]
[1727408172875,3.58805,2629.4,2629.3,2.75644266]
[1727408173175,3.58805,2629.4,2629.3,2.75649235]
[1727408173373,3.58805,2629.4,2629.3,0.99157653]
[1727408173567,3.2078,2629.4,2629.3,0.99157653]
[1727408173968,3.2078,2629.4,2629.3,2.75595182]
[1727408174275,3.2078,2629.4,2629.3,0.99157653]
[1727408174473,3.2078,2629.4,2629.2,0.99157653]
[1727408175875,0.38027,2629.3,2629.2,0.99157653]
[1727408176066,0.38028,2629.2,2629.1,1.78807653]
[1727408176264,3.2078,2629.4,2629.1,6.52169551]